[Event "GER-ch Youth U12 2020"]
[Site "Willingen"]
[Date "2020.10.30"]
[Round "6.7"]
[White "Müller, Maximilian"]
[Black "Klaska, Philipp Leon"]
[Result "0-1"]
[ECO "C08"]
[WhiteElo "1691"]
[BlackElo "1716"]
[Annotator "NA RC"]
[PlyCount "58"]
[EventDate "2020.10.27"]
[EventType "swiss"]
[EventRounds "7"]
[EventCountry "GER"]
[SourceTitle "playchess.com"]
[Source "ChessBase"]
[SourceQuality "1"]
[TimeControl "40/5400+30:1800+30"]

1. e4 {[%emt 0:00:00]} e6 {[%emt 0:00:00]} 2. d4 {[%emt 0:00:00]} d5 {[%emt 0:00:00]} 3. Nd2 {[%emt 0:00:00]} c5 {[%emt 0:00:11]} 4. exd5 {[%emt 0:00:12]} exd5 {[%emt 0:00:17]} 5. dxc5 {[%emt 0:01:04]} Bxc5 {[%emt 0:00:38]} 6. Nb3 {[%emt 0:01:00]} Bb6 {[%emt 0:02:05]} 7. Nf3 {[%emt 0:00:17]} Nf6 {[%emt 0:01:39]} 8. Bg5 {[%emt 0:00:51]} O-O {[%emt 0:01:48]} 9. Nbd4 {[%emt 0:10:51]} Bg4 {[%emt 0:08:35]} 10. Be2 {[%emt 0:00:55]} Nbd7 {[%emt 0:03:47]} 11. O-O {[%emt 0:01:00]} h6 {[%emt 0:04:00]} 12. Bxf6 {[%emt 0:04:53]} Nxf6 {[%emt 0:01:39]} 13. h3 {[%emt 0:01:28]} Bh5 {[%emt 0:00:47]} 14. c3 {[%emt 0:06:26]} Re8 {[%emt 0:03:09]} 15. Bb5 {[%emt 0:06:39]} Re4 {[%emt 0:05:45]} 16. Qb3 {[%emt 0:09:37]} Qd6 {[%emt 0:07:04]} 17. Bd3 {[%emt 0:11:13]} Rf4 {[%emt 0:09:17]} 18. Nf5 {[%emt 0:20:54]} Qd7 {[%emt 0:04:29]} 19. Ne5 {[%emt 0:04:59]} Qe6 {[%emt 0:06:37]} 20. Rae1 {[%emt 0:01:04]} Rxf5 {[%emt 0:19:22]} 21. Bxf5 {[%emt 0:01:28]} Qxf5 {[%emt 0:01:56]} 22. g4 {[%emt 0:01:06]} Bxg4 {[%emt 0:02:56]} 23. hxg4 {[%emt 0:00:27]} Nxg4 {[%emt 0:00:59]} 24. Nxg4 {[%emt 0:00:48]} Qxg4+ {[%emt 0:00:17]} 25. Kh1 {[%emt 0:00:42]} Qh3+ {[%emt 0:00:57]} 26. Kg1 {[%emt 0:00:05]} Bc7 {[%emt 0:01:09]} 27. f4 {[%emt 0:00:28]} Bb6+ {[%emt 0:00:24]} 28. Rf2 {[%emt 0:00:08]} Qg3+ {[%emt 0:00:11]} 29. Kh1 {[%emt 0:00:13]} Bxf2 {[%emt 0:00:07]} 0-1

[Event "GER-ch Youth U12 2020"]
[Site "Willingen"]
[Date "2020.10.30"]
[Round "6.8"]
[White "Eichhorn, Valentin"]
[Black "Uhlmann, Tim"]
[Result "1/2-1/2"]
[ECO "A34"]
[WhiteElo "1545"]
[BlackElo "1523"]
[Annotator "NA RC"]
[PlyCount "70"]
[EventDate "2020.10.27"]
[EventType "swiss"]
[EventRounds "7"]
[EventCountry "GER"]
[SourceTitle "playchess.com"]
[Source "ChessBase"]
[SourceQuality "1"]
[TimeControl "40/5400+30:1800+30"]

1. c4 {[%emt 0:00:00]} c5 {[%emt 0:00:00]} 2. g3 {[%emt 0:00:00]} Nf6 {[%emt 0:00:00]} 3. Bg2 {[%emt 0:00:20]} d5 {[%emt 0:00:17]} 4. cxd5 {[%emt 0:00:44]} Nxd5 {[%emt 0:00:07]} 5. Nc3 {[%emt 0:00:40]} Nc7 {[%emt 0:00:05]} 6. e3 {[%emt 0:00:44]} Nc6 {[%emt 0:00:52]} 7. Nge2 {[%emt 0:01:03]} e5 {[%emt 0:00:09]} 8. a3 {[%emt 0:01:30]} Be7 {[%emt 0:00:13]} 9. Qc2 {[%emt 0:03:35]} O-O {[%emt 0:00:30]} 10. O-O {[%emt 0:00:14]} f6 {[%emt 0:00:40]} 11. Rb1 {[%emt 0:04:45]} Be6 {[%emt 0:01:30]} 12. b3 {[%emt 0:01:43]} Qd7 {[%emt 0:00:26]} 13. Bb2 {[%emt 0:02:08]} Rfd8 {[%emt 0:01:42]} 14. Rfd1 {[%emt 0:01:04]} Rac8 {[%emt 0:00:54]} 15. d3 {[%emt 0:01:55]} Bf8 {[%emt 0:00:42]} 16. Ba1 {[%emt 0:04:23]} b5 {[%emt 0:03:40]} 17. Na2 {[%emt 0:05:56]} Nd5 {[%emt 0:03:25]} 18. Nac3 {[%emt 0:05:24]} b4 {[%emt 0:01:43]} 19. Bxd5 {[%emt 0:05:26]} Bxd5 {[%emt 0:00:23]} 20. Nxd5 {[%emt 0:00:50]} Qxd5 {[%emt 0:00:34]} 21. e4 {[%emt 0:01:13]} Qd7 {[%emt 0:04:39]} 22. a4 {[%emt 0:00:20]} Nd4 {[%emt 0:12:14]} 23. Bxd4 {[%emt 0:03:08]} cxd4 {[%emt 0:00:36]} 24. Qb2 {[%emt 0:01:12]} a5 {[%emt 0:07:26]} 25. Rbc1 {[%emt 0:04:09]} Rc3 {[%emt 0:18:43]} 26. Nxc3 {[%emt 0:01:05]} bxc3 {[%emt 0:00:11]} 27. Qa2 {[%emt 0:01:00]} Bb4 {[%emt 0:00:28]} 28. Kg2 {[%emt 0:01:12]} Kf8 {[%emt 0:00:55]} 29. Qc2 {[%emt 0:01:01]} Rb8 {[%emt 0:02:23]} 30. Ra1 {[%emt 0:04:35]} Qd6 {[%emt 0:01:44]} 31. Ra2 {[%emt 0:01:52]} Qe6 {[%emt 0:08:09]} 32. f3 {[%emt 0:04:02]} h5 {[%emt 0:01:06]} 33. h3 {[%emt 0:03:58]} Kf7 {[%emt 0:02:34]} 34. Rda1 {[%emt 0:03:17]} Rg8 {[%emt 0:03:01]} 35. Rd1 {[%emt 0:06:27]} g6 {[%emt 0:02:11]} 1/2-1/2

[Event "GER-ch Youth U12 2020"]
[Site "Willingen"]
[Date "2020.10.30"]
[Round "6.9"]
[White "Zobel, Christian"]
[Black "Kieselbach, Jannik"]
[Result "1-0"]
[ECO "C00"]
[WhiteElo "1521"]
[BlackElo "1453"]
[Annotator "NA RC"]
[PlyCount "81"]
[EventDate "2020.10.27"]
[EventType "swiss"]
[EventRounds "7"]
[EventCountry "GER"]
[SourceTitle "playchess.com"]
[Source "ChessBase"]
[SourceQuality "1"]
[TimeControl "40/5400+30:1800+30"]

1. e4 {[%emt 0:00:00]} e6 {[%emt 0:00:00]} 2. d3 {[%emt 0:00:00]} d5 {[%emt 0:00:00]} 3. Qe2 {[%emt 0:00:00]} dxe4 {[%emt 0:01:28]} 4. dxe4 {[%emt 0:00:11]} Nf6 {[%emt 0:07:34]} 5. Nf3 {[%emt 0:03:20]} Nc6 {[%emt 0:06:09]} 6. e5 {[%emt 0:06:29]} Nd5 {[%emt 0:02:54]} 7. g3 {[%emt 0:01:48]} h6 {[%emt 0:11:42]} 8. Bg2 {[%emt 0:03:35]} Bc5 {[%emt 0:06:34]} 9. O-O {[%emt 0:02:51]} O-O {[%emt 0:02:19]} 10. Nbd2 {[%emt 0:03:38]} f6 {[%emt 0:06:15]} 11. exf6 {[%emt 0:04:30]} Nxf6 {[%emt 0:03:03]} 12. Nb3 {[%emt 0:04:22]} Bb6 {[%emt 0:02:59]} 13. Be3 {[%emt 0:06:09]} Qe8 {[%emt 0:08:05]} 14. Bxb6 {[%emt 0:05:54]} cxb6 {[%emt 0:01:28]} 15. Rfe1 {[%emt 0:02:03]} Qe7 {[%emt 0:04:57]} 16. Ne5 {[%emt 0:11:08]} Nxe5 {[%emt 0:03:05]} 17. Qxe5 {[%emt 0:00:20]} Ng4 {[%emt 0:03:00]} 18. Qe2 {[%emt 0:05:08]} Nf6 {[%emt 0:07:23]} 19. Rad1 {[%emt 0:04:00]} Re8 {[%emt 0:01:07]} 20. Nd4 {[%emt 0:06:41]} Qc7 {[%emt 0:01:54]} 21. Nb5 {[%emt 0:02:45]} Qe7 {[%emt 0:01:34]} 22. c3 {[%emt 0:03:25]} Rd8 {[%emt 0:01:54]} 23. Rxd8+ {[%emt 0:00:45]} Qxd8 {[%emt 0:00:06]} 24. Bh3 {[%emt 0:00:34]} e5 {[%emt 0:03:01]} 25. Bxc8 {[%emt 0:00:50]} Rxc8 {[%emt 0:00:48]} 26. Qxe5 {[%emt 0:00:26]} Qd5 {[%emt 0:02:11]} 27. Qxd5+ {[%emt 0:00:58]} Nxd5 {[%emt 0:00:08]} 28. Re5 {[%emt 0:02:12]} Nf6 {[%emt 0:01:00]} 29. Re7 {[%emt 0:01:28]} Rc5 {[%emt 0:00:58]} 30. Nd4 {[%emt 0:00:29]} Ra5 {[%emt 0:05:51]} 31. a3 {[%emt 0:01:06]} Nd5 {[%emt 0:00:25]} 32. Rxb7 {[%emt 0:00:23]} Nxc3 {[%emt 0:00:53]} 33. bxc3 {[%emt 0:00:48]} Rxa3 {[%emt 0:00:04]} 34. Nb5 {[%emt 0:00:34]} Rb3 {[%emt 0:00:21]} 35. Nxa7 {[%emt 0:00:21]} Rxc3 {[%emt 0:00:18]} 36. Rxb6 {[%emt 0:00:05]} Kh7 {[%emt 0:00:14]} 37. Kg2 {[%emt 0:01:03]} h5 {[%emt 0:00:16]} 38. Nc6 {[%emt 0:01:46]} Rc5 {[%emt 0:00:26]} 39. Nd4 {[%emt 0:00:42]} g6 {[%emt 0:00:26]} 40. Ne6 {[%emt 0:01:30]} Re5 {[%emt 0:00:14]} 41. Nf8+ {[%emt 0:30:19]} 1-0

[Event "GER-ch Youth U12 2020"]
[Site "Willingen"]
[Date "2020.10.30"]
[Round "6.10"]
[White "Berresheim, Nils"]
[Black "Winkler, Yonathan"]
[Result "0-1"]
[ECO "D18"]
[WhiteElo "1534"]
[BlackElo "1680"]
[Annotator "NA RC"]
[PlyCount "92"]
[EventDate "2020.10.27"]
[EventType "swiss"]
[EventRounds "7"]
[EventCountry "GER"]
[SourceTitle "playchess.com"]
[Source "ChessBase"]
[SourceQuality "1"]
[TimeControl "40/5400+30:1800+30"]

1. d4 {[%emt 0:00:00]} d5 {[%emt 0:00:00]} 2. c4 {[%emt 0:00:00]} c6 {[%emt 0:00:00]} 3. Nf3 {[%emt 0:00:02]} Nf6 {[%emt 0:00:00]} 4. Nc3 {[%emt 0:00:17]} dxc4 {[%emt 0:00:06]} 5. a4 {[%emt 0:00:26]} Bf5 {[%emt 0:00:39]} 6. e3 {[%emt 0:00:48]} e6 {[%emt 0:00:14]} 7. Bxc4 {[%emt 0:00:36]} Bb4 {[%emt 0:00:07]} 8. O-O {[%emt 0:00:12]} O-O {[%emt 0:00:39]} 9. Nh4 {[%emt 0:01:02]} Bg6 {[%emt 0:01:23]} 10. Nxg6 {[%emt 0:00:49]} hxg6 {[%emt 0:00:06]} 11. Re1 {[%emt 0:01:50]} Nbd7 {[%emt 0:00:58]} 12. e4 {[%emt 0:02:42]} e5 {[%emt 0:04:41]} 13. Bg5 {[%emt 0:09:46]} exd4 {[%emt 0:05:39]} 14. Qxd4 {[%emt 0:01:50]} Bc5 {[%emt 0:00:08]} 15. Qd2 Ne5 {[%emt 0:01:24]} 16. Qe2 {[%emt 0:05:02]} Qb6 {[%emt 0:04:43]} 17. a5 {[%emt 0:05:02]} Bxf2+ {[%emt 0:01:21]} 18. Kf1 {[%emt 0:02:37]} Qc5 {[%emt 0:00:38]} 19. Na4 {[%emt 0:07:40]} Qxc4 {[%emt 0:01:08]} 20. Qxc4 {[%emt 0:00:57]} Nxc4 {[%emt 0:00:04]} 21. Kxf2 {[%emt 0:00:54]} Ne5 {[%emt 0:01:29]} 22. Kg1 {[%emt 0:02:40]} Rfe8 {[%emt 0:01:01]} 23. Nc5 {[%emt 0:03:14]} b6 {[%emt 0:01:25]} 24. Na6 {[%emt 0:01:42]} Rad8 {[%emt 0:06:23]} 25. Nb4 {[%emt 0:05:42]} Rd4 {[%emt 0:01:24]} 26. Nc2 {[%emt 0:06:44]} Rxe4 {[%emt 0:00:21]} 27. Rxe4 {[%emt 0:01:06]} Nxe4 {[%emt 0:00:06]} 28. Be3 {[%emt 0:01:19]} Nc4 {[%emt 0:02:20]} 29. axb6 {[%emt 0:01:20]} axb6 {[%emt 0:00:44]} 30. Ra6 {[%emt 0:03:51]} Nxe3 {[%emt 0:02:43]} 31. Nxe3 {[%emt 0:03:14]} Nc5 {[%emt 0:00:03]} 32. Ra3 {[%emt 0:01:02]} Re4 {[%emt 0:01:08]} 33. Rc3 {[%emt 0:05:17]} Rd4 {[%emt 0:02:03]} 34. Nc4 {[%emt 0:01:34]} Rd1+ {[%emt 0:00:07]} 35. Kf2 {[%emt 0:00:48]} Ne4+ {[%emt 0:00:04]} 36. Ke2 {[%emt 0:00:49]} Nxc3+ {[%emt 0:00:04]} 37. bxc3 {[%emt 0:00:17]} Rc1 {[%emt 0:00:24]} 38. Kd2 {[%emt 0:00:59]} Rg1 {[%emt 0:00:08]} 39. g3 {[%emt 0:00:30]} Rg2+ {[%emt 0:00:22]} 40. Kd3 {[%emt 0:00:07]} b5 {[%emt 0:00:25]} 41. Ne5 {[%emt 0:30:17]} c5 {[%emt 0:30:09]} 42. Nd7 {[%emt 0:00:18]} c4+ {[%emt 0:00:40]} 43. Ke4 {[%emt 0:00:34]} Rxh2 {[%emt 0:00:41]} 44. Kd5 {[%emt 0:00:13]} Rc2 {[%emt 0:00:34]} 45. Kc5 {[%emt 0:00:20]} Rxc3 {[%emt 0:00:05]} 46. Kxb5 {[%emt 0:00:09]} Rxg3 {[%emt 0:00:05]} 0-1

[Event "GER-ch Youth U12 2020"]
[Site "Willingen"]
[Date "2020.10.30"]
[Round "6.11"]
[White "Werner, Florin"]
[Black "Haubold, Christian Lucas"]
[Result "0-1"]
[ECO "C71"]
[WhiteElo "1481"]
[BlackElo "1615"]
[Annotator "NA RC"]
[PlyCount "80"]
[EventDate "2020.10.27"]
[EventType "swiss"]
[EventRounds "7"]
[EventCountry "GER"]
[SourceTitle "playchess.com"]
[Source "ChessBase"]
[SourceQuality "1"]
[TimeControl "40/5400+30:1800+30"]

1. e4 {[%emt 0:00:00]} e5 {[%emt 0:00:00]} 2. Nf3 {[%emt 0:00:00]} Nc6 {[%emt 0:00:00]} 3. Bb5 {[%emt 0:00:00]} a6 {[%emt 0:00:00]} 4. Ba4 {[%emt 0:00:00]} d6 {[%emt 0:00:01]} 5. d4 {[%emt 0:00:06]} b5 {[%emt 0:00:54]} 6. Bb3 {[%emt 0:00:05]} Nxd4 {[%emt 0:00:36]} 7. Nxd4 {[%emt 0:00:08]} exd4 {[%emt 0:00:09]} 8. c3 {[%emt 0:00:18]} dxc3 {[%emt 0:00:27]} 9. Nxc3 {[%emt 0:00:04]} Nf6 {[%emt 0:03:49]} 10. e5 {[%emt 0:01:26]} Qe7 {[%emt 0:12:49]} 11. O-O {[%emt 0:05:47]} dxe5 {[%emt 0:03:24]} 12. Bg5 Bb7 {[%emt 0:03:46]} 13. Nd5 {[%emt 0:04:24]} Qd6 {[%emt 0:08:11]} 14. Nxf6+ {[%emt 0:02:15]} gxf6 {[%emt 0:00:44]} 15. Qxd6 {[%emt 0:00:44]} Bxd6 {[%emt 0:00:08]} 16. Bxf6 {[%emt 0:00:05]} Rg8 {[%emt 0:00:09]} 17. g3 {[%emt 0:00:04]} Kf8 {[%emt 0:05:08]} 18. Rfe1 {[%emt 0:01:46]} Re8 {[%emt 0:02:19]} 19. Re3 {[%emt 0:00:24]} Rg6 {[%emt 0:01:59]} 20. Bh4 {[%emt 0:00:31]} Kg7 {[%emt 0:01:10]} 21. Rd1 {[%emt 0:00:13]} f5 {[%emt 0:03:24]} 22. Bd5 {[%emt 0:00:24]} Bxd5 {[%emt 0:01:05]} 23. Rxd5 {[%emt 0:00:04]} Kf7 {[%emt 0:01:11]} 24. Rc3 {[%emt 0:00:12]} Ke6 {[%emt 0:00:50]} 25. Rd2 {[%emt 0:00:36]} Rb8 {[%emt 0:08:07]} 26. Rdc2 {[%emt 0:01:20]} c5 {[%emt 0:08:25]} 27. Rd2 {[%emt 0:00:33]} c4 {[%emt 0:01:25]} 28. Rc1 {[%emt 0:03:43]} Bb4 {[%emt 0:03:39]} 29. Re2 {[%emt 0:04:48]} Rg7 {[%emt 0:03:05]} 30. Rd1 {[%emt 0:00:21]} Bd6 {[%emt 0:10:17]} 31. Red2 {[%emt 0:01:53]} Rd7 {[%emt 0:01:47]} 32. Kg2 {[%emt 0:02:23]} Rbb7 {[%emt 0:00:09]} 33. Kf3 {[%emt 0:00:58]} Be7 {[%emt 0:01:45]} 34. Rxd7 {[%emt 0:00:53]} Rxd7 {[%emt 0:00:11]} 35. Rxd7 {[%emt 0:00:04]} Kxd7 {[%emt 0:00:06]} 36. Bxe7 {[%emt 0:00:07]} Kxe7 {[%emt 0:00:03]} 37. Ke3 {[%emt 0:00:10]} Ke6 {[%emt 0:03:35]} 38. h3 {[%emt 0:00:37]} h5 {[%emt 0:00:39]} 39. f3 {[%emt 0:00:26]} b4 {[%emt 0:05:18]} 40. a3 {[%emt 0:01:31]} c3 {[%emt 0:00:56]} 0-1

[Event "GER-ch Youth U12 2020"]
[Site "Willingen"]
[Date "2020.10.30"]
[Round "6.12"]
[White "Kiefhaber, Tobias"]
[Black "Möller, Maurin"]
[Result "1/2-1/2"]
[ECO "D02"]
[WhiteElo "1542"]
[BlackElo "1645"]
[Annotator "NA RC"]
[PlyCount "86"]
[EventDate "2020.10.27"]
[EventType "swiss"]
[EventRounds "7"]
[EventCountry "GER"]
[SourceTitle "playchess.com"]
[Source "ChessBase"]
[SourceQuality "1"]
[TimeControl "40/5400+30:1800+30"]

1. d4 {[%emt 0:00:00]} d5 {[%emt 0:00:00]} 2. Nf3 {[%emt 0:00:00]} Nf6 {[%emt 0:00:00]} 3. Bf4 {[%emt 0:00:00]} c5 {[%emt 0:00:00]} 4. e3 {[%emt 0:00:26]} Nc6 {[%emt 0:00:04]} 5. c3 {[%emt 0:00:38]} Qb6 {[%emt 0:00:27]} 6. Qb3 {[%emt 0:00:22]} c4 {[%emt 0:00:05]} 7. Qxb6 {[%emt 0:01:06]} axb6 {[%emt 0:00:06]} 8. Nbd2 {[%emt 0:01:19]} b5 {[%emt 0:00:31]} 9. Be2 {[%emt 0:01:07]} b4 {[%emt 0:00:19]} 10. O-O {[%emt 0:00:55]} Nh5 {[%emt 0:02:02]} 11. Bg3 {[%emt 0:00:30]} Nxg3 {[%emt 0:00:16]} 12. hxg3 {[%emt 0:00:15]} h6 {[%emt 0:00:08]} 13. e4 {[%emt 0:02:17]} e6 {[%emt 0:01:41]} 14. Rfe1 {[%emt 0:01:05]} Be7 {[%emt 0:00:38]} 15. exd5 {[%emt 0:03:39]} exd5 {[%emt 0:00:11]} 16. Nf1 {[%emt 0:00:23]} O-O {[%emt 0:00:42]} 17. Ne3 {[%emt 0:01:37]} Be6 {[%emt 0:00:16]} 18. Ne5 Ra5 {[%emt 0:15:01]} 19. Nxc6 {[%emt 0:08:18]} bxc6 {[%emt 0:01:32]} 20. cxb4 {[%emt 0:00:35]} Bxb4 {[%emt 0:00:32]} 21. Rec1 {[%emt 0:00:14]} Rfa8 {[%emt 0:07:26]} 22. a3 {[%emt 0:00:29]} Bd2 {[%emt 0:00:37]} 23. Rc2 {[%emt 0:00:43]} Bxe3 {[%emt 0:00:33]} 24. fxe3 {[%emt 0:00:06]} Bf5 {[%emt 0:00:05]} 25. Rd2 {[%emt 0:01:33]} Rb8 {[%emt 0:01:00]} 26. Kf2 {[%emt 0:01:10]} Ra7 {[%emt 0:01:10]} 27. g4 {[%emt 0:03:21]} Bg6 {[%emt 0:00:37]} 28. a4 {[%emt 0:01:13]} Rba8 {[%emt 0:01:15]} 29. Bd1 {[%emt 0:00:58]} Rb8 {[%emt 0:02:18]} 30. Ra2 {[%emt 0:02:03]} f6 {[%emt 0:00:20]} 31. Ra3 {[%emt 0:01:43]} Rab7 {[%emt 0:02:44]} 32. b3 {[%emt 0:03:21]} cxb3 {[%emt 0:09:36]} 33. Rb2 {[%emt 0:00:24]} Kf8 {[%emt 0:11:24]} 34. Raxb3 {[%emt 0:02:05]} Rxb3 {[%emt 0:00:52]} 35. Rxb3 {[%emt 0:00:07]} Rxb3 {[%emt 0:00:07]} 36. Bxb3 {[%emt 0:00:07]} Ke7 {[%emt 0:00:10]} 37. Ke2 {[%emt 0:00:39]} Kd6 {[%emt 0:00:18]} 38. Kd2 {[%emt 0:00:17]} Be4 {[%emt 0:00:47]} 39. g3 {[%emt 0:01:36]} Kc7 {[%emt 0:05:21]} 40. Bc2 {[%emt 0:00:22]} Bf3 {[%emt 0:00:15]} 41. Bd1 {[%emt 0:30:20]} Be4 {[%emt 0:34:28]} 42. Bc2 {[%emt 0:00:26]} Bf3 {[%emt 0:00:48]} 43. Bd1 {[%emt 0:00:05]} Be4 {[%emt 0:01:31]} 1/2-1/2

[Event "GER-ch Youth U12 2020"]
[Site "Willingen"]
[Date "2020.10.30"]
[Round "6.13"]
[White "Grabs, Peter"]
[Black "Navarro Jahnke, Leo"]
[Result "1-0"]
[ECO "B29"]
[WhiteElo "1674"]
[BlackElo "1686"]
[Annotator "NA RC"]
[PlyCount "57"]
[EventDate "2020.10.27"]
[EventType "swiss"]
[EventRounds "7"]
[EventCountry "GER"]
[SourceTitle "playchess.com"]
[Source "ChessBase"]
[SourceQuality "1"]
[TimeControl "40/5400+30:1800+30"]

1. e4 {[%emt 0:00:00]} c5 {[%emt 0:00:00]} 2. Nf3 {[%emt 0:00:00]} Nf6 {[%emt 0:00:00]} 3. e5 {[%emt 0:00:00]} Nd5 {[%emt 0:00:01]} 4. Nc3 {[%emt 0:00:00]} Nxc3 {[%emt 0:00:08]} 5. dxc3 {[%emt 0:00:05]} d5 {[%emt 0:00:08]} 6. exd6 {[%emt 0:06:03]} Qxd6 {[%emt 0:00:12]} 7. Qxd6 {[%emt 0:00:28]} exd6 {[%emt 0:00:14]} 8. Bf4 {[%emt 0:00:23]} Be6 {[%emt 0:02:29]} 9. O-O-O {[%emt 0:01:21]} d5 {[%emt 0:05:00]} 10. Bb5+ {[%emt 0:01:27]} Nc6 {[%emt 0:00:53]} 11. Rhe1 {[%emt 0:01:01]} Be7 {[%emt 0:00:48]} 12. Ng5 {[%emt 0:08:02]} Bxg5 {[%emt 0:03:21]} 13. Bxg5 {[%emt 0:00:18]} O-O {[%emt 0:00:18]} 14. Bxc6 {[%emt 0:00:26]} bxc6 {[%emt 0:05:48]} 15. Be7 {[%emt 0:01:38]} Rfb8 {[%emt 0:09:24]} 16. Bxc5 {[%emt 0:00:36]} Rb5 {[%emt 0:00:19]} 17. Be3 {[%emt 0:01:42]} Rab8 {[%emt 0:02:33]} 18. b4 {[%emt 0:03:19]} a5 {[%emt 0:06:43]} 19. a4 {[%emt 0:02:32]} R5b7 {[%emt 0:00:38]} 20. bxa5 {[%emt 0:02:07]} Rb2 {[%emt 0:03:48]} 21. Bb6 {[%emt 0:03:51]} Ra2 {[%emt 0:01:21]} 22. Rd4 {[%emt 0:08:50]} Ra1+ {[%emt 0:08:12]} 23. Kd2 {[%emt 0:00:57]} Ra2 {[%emt 0:00:28]} 24. Rb4 {[%emt 0:02:21]} h6 {[%emt 0:03:42]} 25. a6 {[%emt 0:02:57]} c5 {[%emt 0:07:21]} 26. a7 {[%emt 0:00:40]} Rc8 {[%emt 0:04:15]} 27. Bxc5 {[%emt 0:01:20]} Bd7 {[%emt 0:01:09]} 28. Rb8 {[%emt 0:00:38]} Rxa4 {[%emt 0:00:29]} 29. Rxc8+ {[%emt 0:00:08]} 1-0

[Event "GER-ch Youth U12 2020"]
[Site "Willingen"]
[Date "2020.10.30"]
[Round "6.14"]
[White "Krüger, Arthur"]
[Black "Weyerer, Noah"]
[Result "0-1"]
[ECO "C02"]
[WhiteElo "1704"]
[BlackElo "1536"]
[Annotator "NA RC"]
[PlyCount "70"]
[EventDate "2020.10.27"]
[EventType "swiss"]
[EventRounds "7"]
[EventCountry "GER"]
[SourceTitle "playchess.com"]
[Source "ChessBase"]
[SourceQuality "1"]
[TimeControl "40/5400+30:1800+30"]

1. e4 {[%emt 0:00:00]} e6 {[%emt 0:00:00]} 2. d4 {[%emt 0:00:00]} d5 {[%emt 0:00:00]} 3. e5 {[%emt 0:00:00]} c5 {[%emt 0:00:00]} 4. c3 {[%emt 0:00:00]} Nc6 {[%emt 0:00:07]} 5. Nf3 {[%emt 0:00:01]} Bd7 {[%emt 0:00:10]} 6. Bd3 {[%emt 0:01:01]} f6 {[%emt 0:01:13]} 7. O-O {[%emt 0:01:29]} Qc7 {[%emt 0:05:55]} 8. Bf4 {[%emt 0:03:48]} O-O-O {[%emt 0:01:41]} 9. Bg3 {[%emt 0:06:23]} Qb6 {[%emt 0:03:29]} 10. Qc2 {[%emt 0:07:18]} h6 {[%emt 0:04:57]} 11. a4 {[%emt 0:04:54]} c4 {[%emt 0:03:37]} 12. Bg6 {[%emt 0:05:09]} f5 {[%emt 0:02:41]} 13. Nbd2 {[%emt 0:12:44]} Nge7 {[%emt 0:06:31]} 14. Nh4 {[%emt 0:01:14]} Be8 {[%emt 0:02:46]} 15. Bxe8 {[%emt 0:00:18]} Rxe8 {[%emt 0:00:10]} 16. f4 {[%emt 0:00:35]} g5 {[%emt 0:02:36]} 17. Nhf3 {[%emt 0:02:00]} Rg8 {[%emt 0:10:00]} 18. b3 {[%emt 0:05:40]} Na5 {[%emt 0:04:11]} 19. bxc4 {[%emt 0:04:47]} dxc4 {[%emt 0:02:14]} 20. Rab1 {[%emt 0:04:33]} Qc7 {[%emt 0:02:41]} 21. Qb2 {[%emt 0:07:41]} Nd5 {[%emt 0:11:20]} 22. Ne1 {[%emt 0:03:13]} Qc6 {[%emt 0:06:36]} 23. Rc1 {[%emt 0:11:33]} Re7 {[%emt 0:05:06]} 24. Qb5 {[%emt 0:01:54]} Qc7 {[%emt 0:03:24]} 25. Qb2 {[%emt 0:03:51]} a6 {[%emt 0:01:47]} 26. fxg5 {[%emt 0:03:29]} hxg5 {[%emt 0:00:14]} 27. Nc2 {[%emt 0:00:44]} f4 {[%emt 0:01:20]} 28. Be1 {[%emt 0:02:06]} Rh7 {[%emt 0:02:21]} 29. Ne4 {[%emt 0:00:56]} g4 {[%emt 0:04:59]} 30. Nf6 {[%emt 0:01:02]} Nxf6 31. exf6 Rgh8 {[%emt 0:02:08]} 32. Bd2 {[%emt 0:02:03]} f3 {[%emt 0:02:14]} 33. h3 {[%emt 0:03:51]} Rxh3 {[%emt 0:01:00]} 34. gxh3 {[%emt 0:00:27]} Qg3+ {[%emt 0:00:06]} 35. Kh1 {[%emt 0:00:06]} Qg2# {[%emt 0:00:05]} 0-1

[Event "GER-ch Youth U12 2020"]
[Site "Willingen"]
[Date "2020.10.30"]
[Round "6.15"]
[White "Schwarz, David"]
[Black "Sommer, Justus"]
[Result "0-1"]
[ECO "C84"]
[WhiteElo "1200"]
[BlackElo "1845"]
[Annotator "NA RC"]
[PlyCount "62"]
[EventDate "2020.10.27"]
[EventType "swiss"]
[EventRounds "7"]
[EventCountry "GER"]
[SourceTitle "playchess.com"]
[Source "ChessBase"]
[SourceQuality "1"]
[TimeControl "40/5400+30:1800+30"]

{[%evp 23,56,-23,2,-30,-26,-41,-34,-46,-17,-46,-13,-18,-14,-101,-114,-152,-121,-295,-322,-479,-494,-491,-510,-510,-614,-739,-779,-756,-772,-804,-806,-850,-945,-1143,-1202]} 1. e4 {[%emt 0:00:00]} e5 {[%emt 0:00:00]} 2. Nf3 {[%emt 0:00:00]} Nc6 {[%emt 0:00:00]} 3. Bb5 {[%emt 0:00:16]} a6 {[%emt 0:00:04]} 4. Ba4 {[%emt 0:00:13]} Nf6 {[%emt 0:00:30]} 5. O-O {[%emt 0:00:39]} Be7 {[%emt 0:00:22]} 6. d3 {[%emt 0:00:35]} b5 {[%emt 0:00:17]} 7. Bb3 {[%emt 0:00:14]} d6 {[%emt 0:00:12]} 8. a3 {[%emt 0:00:44] is currently scoring better than 8.a4. Played by Fabiano Caruana in October 2020. C84: Closed Ruy Lopez: Unusual White 6th moves.} Na5 {[%emt 0:00:32]} 9. Ba2 {[%emt 0:00:20]} c5 {[%emt 0:00:15]} 10. c3 {[%emt 0:05:52]} O-O {[%emt 0:01:58]} 11. b4 {[%emt 0:01:34]} Nc6 {[%emt 0:01:04] [#]} 12. Bg5 $146 {[%emt 0:03:58]} ({Predecessor:} 12. Bd5 Nxd5 13. exd5 Nb8 14. c4 cxb4 15. axb4 bxc4 16. dxc4 Qc7 17. Nbd2 Bf5 18. Re1 {½-½ (47) Golubka,P (2389)-Terletsky,O (2313) Lvov 2014}) 12... Bg4 {[%emt 0:03:32]} 13. Bxf6 {[%emt 0:03:02]} Bxf6 {[%emt 0:00:41]} ({Reject} 13... gxf6 $6 14. Bd5 $14) 14. Bd5 {[%emt 0:00:20]} Rc8 {[%emt 0:00:41]} 15. h3 {[%emt 0:03:34]} Bh5 {[%emt 0:02:26]} 16. Nbd2 {[%emt 0:06:14]} Bg5 {[%emt 0:07:33]} 17. g4 {[%emt 0:02:49]} Bg6 {[%emt 0:02:46]} 18. Kg2 {[%emt 0:03:37]} (18. bxc5 $11 {remains equal.} Bf4 19. cxd6) 18... Bf4 {[%emt 0:03:57]} 19. Bxc6 {[%emt 0:05:27]} (19. Qe2 $142) 19... Rxc6 {[%emt 0:01:22]} 20. Rc1 {[%emt 0:10:40]} (20. c4 $17) 20... d5 {[%emt 0:02:13]} 21. Kg1 $2 {[%emt 0:05:08]} (21. bxc5 {was worth a try.} dxe4 22. dxe4) 21... dxe4 {[%emt 0:03:46]} 22. dxe4 {[%emt 0:04:46]} cxb4 {[%emt 0:01:20]} 23. axb4 {[%emt 0:01:40]} Rd6 {[%emt 0:00:39]} 24. Rc2 {[%emt 0:02:30] [#]} Bxe4 $1 {[%emt 0:01:20] Pin} 25. Ra2 {[%emt 0:01:54]} Bxf3 {[%emt 0:00:10]} 26. Qxf3 {[%emt 0:00:06]} Bxd2 {[%emt 0:00:42]} 27. Rfa1 {[%emt 0:01:18] [#]} Rd3 $1 {[%emt 0:00:30] Double Attack} 28. Qe2 {[%emt 0:02:09]} Bxc3 $19 {[%emt 0:01:06]} 29. Ra3 {[%emt 0:01:08]} Bxa1 {[%emt 0:00:11]} 30. Rxd3 {[%emt 0:00:03]} Bd4 {[%emt 0:00:11]} 31. Ra3 {[%emt 0:00:26]} Qd6 {[%emt 0:00:26]} 0-1